[Event "*** Titled Tuesday 3|2 Blitz"]
[Site "Chess.com"]
[Date "2015.07.07"]
[Round "4"]
[White "kharposh"]
[Black "AlexCn1"]
[Result "0-1"]
[WhiteElo "2176"]
[BlackElo "2047"]
[TimeControl "180+2"]
[EndTime "11:51:35 PDT"]
[Termination "AlexCn1 won by resignation"]

1. e4 {[%clk 0:03:01.9]} 1... d6 {[%clk 0:02:58.9]} 2. d4 {[%clk 0:02:59.6]}
2... Nf6 {[%clk 0:02:59.2]} 3. Nc3 {[%clk 0:03:00.9]} 3... g6 {[%clk 0:03:00.3]}
4. g3 {[%clk 0:02:51]} 4... Bg7 {[%clk 0:02:57.1]} 5. Bg2 {[%clk 0:02:51.9]}
5... O-O {[%clk 0:02:57.9]} 6. Nge2 {[%clk 0:02:52.7]} 6... Nc6 {[%clk
0:02:58.7]} 7. O-O {[%clk 0:02:52.6]} 7... e5 {[%clk 0:02:59.7]} 8. h3 {[%clk
0:02:50.4]} 8... exd4 {[%clk 0:02:50.8]} 9. Nb5 {[%clk 0:02:46.2]} 9... Re8
{[%clk 0:02:49.1]} 10. Bg5 {[%clk 0:02:21.8]} 10... h6 {[%clk 0:02:42.4]} 11.
Bxf6 {[%clk 0:02:22.7]} 11... Bxf6 {[%clk 0:02:42.3]} 12. Nbxd4 {[%clk
0:02:24.1]} 12... Nxd4 {[%clk 0:02:40.7]} 13. Nxd4 {[%clk 0:02:26]} 13... c5
{[%clk 0:02:41.7]} 14. Ne2 {[%clk 0:02:21.9]} 14... Bxb2 {[%clk 0:02:42.5]} 15.
Rb1 {[%clk 0:02:18.6]} 15... Bg7 {[%clk 0:02:43.4]} 16. Nf4 {[%clk 0:02:18.8]}
16... Rb8 {[%clk 0:02:41.2]} 17. Qd3 {[%clk 0:02:12.8]} 17... b6 {[%clk
0:02:24.9]} 18. Rfd1 {[%clk 0:02:12.2]} 18... Bb7 {[%clk 0:02:26]} 19. Nd5
{[%clk 0:01:43.7]} 19... Rc8 {[%clk 0:01:49.3]} 20. a4 {[%clk 0:01:33.7]} 20...
Qd7 {[%clk 0:01:49.5]} 21. a5 {[%clk 0:01:26.3]} 21... bxa5 {[%clk 0:01:50]} 22.
e5 {[%clk 0:01:04.6]} 22... Bxd5 {[%clk 0:01:42.9]} 23. Qxd5 {[%clk 0:00:59.2]}
23... Bxe5 {[%clk 0:01:36.7]} 24. Rb7 {[%clk 0:00:50.7]} 24... Rc7 {[%clk
0:01:31.7]} 25. Rdb1 {[%clk 0:00:51.8]} 25... Rxb7 {[%clk 0:01:24.2]} 26. Rxb7
{[%clk 0:00:53.7]} 26... Qe6 {[%clk 0:01:25.5]} 27. Qxe6 {[%clk 0:00:46.9]}
27... Rxe6 {[%clk 0:01:24.4]} 28. Bd5 {[%clk 0:00:47]} 28... Rf6 {[%clk
0:01:25.1]} 29. Rxa7 {[%clk 0:00:45.6]} 29... Bd4 {[%clk 0:01:25.8]} 30. Rxa5
{[%clk 0:00:20.6]} 30... Rxf2 {[%clk 0:01:22.9]} 31. Ra8+ {[%clk 0:00:18.5]}
31... Kg7 {[%clk 0:01:23.5]} 32. c3 {[%clk 0:00:20.1]} 32... Rf5+ {[%clk
0:01:13.6]} 33. cxd4 {[%clk 0:00:19.7]} 33... Rxd5 {[%clk 0:01:14.4]} 34. dxc5
{[%clk 0:00:20.5]} 34... Rxc5 {[%clk 0:01:11.8]} 35. Kf2 {[%clk 0:00:22.4]}
35... Rc2+ {[%clk 0:01:11.3]} 36. Kf3 {[%clk 0:00:22]} 36... Rc3+ {[%clk
0:01:12.3]} 37. Kf4 {[%clk 0:00:20.9]} 37... Kf6 {[%clk 0:01:09.1]} 38. h4
{[%clk 0:00:20.6]} 38... Rc4+ {[%clk 0:01:08.8]} 39. Kf3 {[%clk 0:00:20.5]}
39... Ke5 {[%clk 0:01:08.1]} 40. Re8+ {[%clk 0:00:20]} 40... Kf5 {[%clk
0:01:07.9]} 41. Rd8 {[%clk 0:00:20]} 41... Rc3+ {[%clk 0:01:08.3]} 42. Kf2
{[%clk 0:00:20.3]} 42... Rd3 {[%clk 0:01:09.3]} 43. Ke2 {[%clk 0:00:18.7]} 43...
Rd5 {[%clk 0:01:10.3]} 44. Ke3 {[%clk 0:00:17.7]} 44... g5 {[%clk 0:01:09.2]}
45. Rh8 {[%clk 0:00:17.4]} 45... Kg6 {[%clk 0:01:07.1]} 46. Rg8+ {[%clk
0:00:16.3]} 46... Kh5 {[%clk 0:01:08]} 47. hxg5 {[%clk 0:00:16.7]} 47... Rxg5
{[%clk 0:01:07.8]} 48. Rd8 {[%clk 0:00:12.9]} 48... Rxg3+ {[%clk 0:01:08.3]} 49.
Ke4 {[%clk 0:00:12.8]} 49... Rg6 {[%clk 0:01:08.3]} 50. Kf5 {[%clk 0:00:13.8]}
50... Re6 {[%clk 0:01:02.3]} 51. Rd7 {[%clk 0:00:14.2]} 51... Re5+ {[%clk
0:01:02.3]} 52. Kf4 {[%clk 0:00:13]} 52... Re6 {[%clk 0:00:55]} 53. Rxf7 {[%clk
0:00:13.7]} 53... Kg6 {[%clk 0:00:55.6]} 54. Rd7 {[%clk 0:00:14.8]} 54... Rf6+
{[%clk 0:00:54.9]} 55. Kg4 {[%clk 0:00:15.7]} 55... Re6 {[%clk 0:00:53.3]} 56.
Rd8 {[%clk 0:00:16.7]} 56... Kf6 {[%clk 0:00:54.3]} 57. Kh5 {[%clk 0:00:17.2]}
57... Ke5 {[%clk 0:00:55.2]} 58. Rd7 {[%clk 0:00:16.5]} 58... d5 {[%clk
0:00:56.5]} 59. Kg4 {[%clk 0:00:16]} 59... Ke4 {[%clk 0:00:56.9]} 60. Kg3 {[%clk
0:00:15.7]} 60... d4 {[%clk 0:00:55]} 61. Kf2 {[%clk 0:00:16.8]} 61... d3 {[%clk
0:00:56.3]} 62. Ke1 {[%clk 0:00:17.8]} 62... Ke3 {[%clk 0:00:57]} 63. Rg7 {[%clk
0:00:15.8]} 63... Rf6 {[%clk 0:00:54.8]} 64. Rg3+ {[%clk 0:00:14]} 64... Rf3
{[%clk 0:00:53]} 65. Rg6 {[%clk 0:00:15.1]} 65... d2+ {[%clk 0:00:53.5]} 66. Kd1
{[%clk 0:00:12.5]} 66... Rf1+ {[%clk 0:00:54.4]} 0-1

[Event "*** Titled Tuesday 3|2 Blitz"]
[Site "Chess.com"]
[Date "2015.07.07"]
[Round "5"]
[White "nijat_a"]
[Black "LuckyTiger"]
[Result "1-0"]
[WhiteElo "2644"]
[BlackElo "2437"]
[TimeControl "180+2"]
[EndTime "11:57:06 PDT"]
[Termination "nijat_a won by resignation"]

1. e4 {[%clk 0:03:01.9]} 1... e6 {[%clk 0:03:00.7]} 2. d4 {[%clk 0:03:02.3]}
2... d5 {[%clk 0:03:02.3]} 3. Nc3 {[%clk 0:03:03.5]} 3... Nf6 {[%clk 0:02:54]}
4. e5 {[%clk 0:03:04.9]} 4... Nfd7 {[%clk 0:02:55]} 5. f4 {[%clk 0:03:06.3]}
5... c5 {[%clk 0:02:56.7]} 6. Nf3 {[%clk 0:03:06.8]} 6... Nc6 {[%clk 0:02:58.1]}
7. Be3 {[%clk 0:03:07.3]} 7... a6 {[%clk 0:02:59.8]} 8. Qd2 {[%clk 0:03:06.8]}
8... b5 {[%clk 0:03:01.4]} 9. f5 {[%clk 0:03:07.7]} 9... cxd4 {[%clk 0:02:51.1]}
10. Nxd4 {[%clk 0:03:09.6]} 10... Ndxe5 {[%clk 0:02:46.8]} 11. fxe6 {[%clk
0:03:08.6]} 11... Bxe6 {[%clk 0:02:46.3]} 12. O-O-O {[%clk 0:03:07.6]} 12... Bb4
{[%clk 0:02:12.8]} 13. Nxc6 {[%clk 0:02:51.4]} 13... Nxc6 {[%clk 0:02:14.7]} 14.
a3 {[%clk 0:02:53.1]} 14... Ba5 {[%clk 0:02:14.9]} 15. b4 {[%clk 0:02:54.6]}
15... Bc7 {[%clk 0:02:05.2]} 16. Nxd5 {[%clk 0:02:50.9]} 16... O-O {[%clk
0:01:59.8]} 17. Nxc7 {[%clk 0:02:50.4]} 17... Qxc7 {[%clk 0:02:01.7]} 18. Qd6
{[%clk 0:02:52]} 18... Qb7 {[%clk 0:01:59.6]} 19. Be2 {[%clk 0:02:51.3]} 19...
Rfd8 {[%clk 0:01:51.2]} 20. Qc5 {[%clk 0:02:51.3]} 20... Rdc8 {[%clk 0:00:32.1]}
21. Bf3 {[%clk 0:02:51.1]} 21... a5 {[%clk 0:00:23]} 22. Rd6 {[%clk 0:02:49.3]}
22... Ra6 {[%clk 0:00:22.1]} 23. Rhd1 {[%clk 0:02:47.6]} 23... h6 {[%clk
0:00:20]} 24. Rd8+ {[%clk 0:02:45.9]} 24... Kh7 {[%clk 0:00:17.5]} 25. Be4+
{[%clk 0:02:41.3]} 25... g6 {[%clk 0:00:18.2]} 26. Qf8 {[%clk 0:02:41.3]} 1-0

[Event "*** Titled Tuesday 3|2 Blitz"]
[Site "Chess.com"]
[Date "2015.07.07"]
[Round "5"]
[White "PauloCesarCosta"]
[Black "HansCoolNiemann"]
[Result "0-1"]
[WhiteElo "2008"]
[BlackElo "1961"]
[TimeControl "180+2"]
[EndTime "11:59:09 PDT"]
[Termination "HansCoolNiemann won on time"]

1. Nf3 {[%clk 0:03:01.9]} 1... Nf6 {[%clk 0:03:00.1]} 2. c4 {[%clk 0:03:02.8]}
2... g6 {[%clk 0:02:59.4]} 3. g3 {[%clk 0:03:02.3]} 3... Bg7 {[%clk 0:02:58.9]}
4. Bg2 {[%clk 0:03:04.2]} 4... d5 {[%clk 0:03:00.1]} 5. O-O {[%clk 0:03:05.9]}
5... O-O {[%clk 0:02:59.5]} 6. cxd5 {[%clk 0:03:05]} 6... Nxd5 {[%clk 0:02:56]}
7. Nc3 {[%clk 0:03:04.2]} 7... Nb6 {[%clk 0:02:54.7]} 8. d3 {[%clk 0:03:01.6]}
8... Nc6 {[%clk 0:02:53.9]} 9. Be3 {[%clk 0:02:58.2]} 9... e5 {[%clk 0:02:52.2]}
10. Rc1 {[%clk 0:02:48.3]} 10... Qe7 {[%clk 0:02:46]} 11. Qd2 {[%clk 0:02:46.4]}
11... Rd8 {[%clk 0:02:43.5]} 12. Bg5 {[%clk 0:02:31.6]} 12... f6 {[%clk
0:02:41.4]} 13. Bh6 {[%clk 0:02:26.4]} 13... Nc4 {[%clk 0:02:34.7]} 14. dxc4
{[%clk 0:02:09.8]} 14... Rxd2 {[%clk 0:02:32.9]} 15. Bxd2 {[%clk 0:02:11.3]}
15... e4 {[%clk 0:02:32.2]} 16. Ne1 {[%clk 0:02:07.3]} 16... f5 {[%clk
0:02:31.4]} 17. Be3 {[%clk 0:02:04.4]} 17... Be6 {[%clk 0:02:28.4]} 18. Nd5
{[%clk 0:02:02.6]} 18... Qf7 {[%clk 0:02:26.6]} 19. Rd1 {[%clk 0:01:47.3]} 19...
Bxb2 {[%clk 0:02:23.1]} 20. Nc2 {[%clk 0:01:09]} 20... Na5 {[%clk 0:02:19.1]}
21. Nd4 {[%clk 0:01:04.4]} 21... Bd7 {[%clk 0:02:13.8]} 22. Rd2 {[%clk
0:01:00.1]} 22... Nxc4 {[%clk 0:02:11.6]} 23. Rc2 {[%clk 0:00:59.6]} 23... Qxd5
{[%clk 0:02:10.7]} 24. Rb1 {[%clk 0:00:57.8]} 24... Bxd4 {[%clk 0:02:09]} 25.
Bxd4 {[%clk 0:00:55.2]} 25... Qxd4 {[%clk 0:02:08.8]} 26. e3 {[%clk 0:00:48.3]}
26... Qd3 {[%clk 0:02:07.9]} 27. Rbc1 {[%clk 0:00:46.9]} 27... b5 {[%clk
0:02:06.4]} 28. Bf1 {[%clk 0:00:15]} 28... Qd6 {[%clk 0:02:01.1]} 29. Bxc4+
{[%clk 0:00:15.6]} 29... bxc4 {[%clk 0:02:01.3]} 30. Rxc4 {[%clk 0:00:17.5]}
30... Rc8 {[%clk 0:02:00.2]} 31. h4 {[%clk 0:00:16]} 31... c5 {[%clk 0:01:59.9]}
32. Kg2 {[%clk 0:00:15.9]} 32... Be6 {[%clk 0:02:00.7]} 33. R4c3 {[%clk
0:00:17.1]} 33... c4 {[%clk 0:02:01.7]} 34. a3 {[%clk 0:00:18.5]} 34... Qd3
{[%clk 0:02:02.1]} 35. R1c2 {[%clk 0:00:06.8]} 35... Qd6 {[%clk 0:01:59.4]} 36.
Rc1 {[%clk 0:00:07.2]} 36... Rb8 {[%clk 0:01:59.8]} 37. R1c2 {[%clk 0:00:05.4]}
37... Rb3 {[%clk 0:01:59.9]} 38. a4 {[%clk 0:00:04.3]} 38... Rxc3 {[%clk
0:01:58]} 39. Rxc3 {[%clk 0:00:06.2]} 39... Qd2 {[%clk 0:01:59.6]} 0-1

[Event "*** Titled Tuesday 3|2 Blitz"]
[Site "Chess.com"]
[Date "2015.07.07"]
[Round "5"]
[White "newtie4"]
[Black "Tirantes"]
[Result "1/2-1/2"]
[WhiteElo "2439"]
[BlackElo "2213"]
[TimeControl "180+2"]
[EndTime "11:59:28 PDT"]
[Termination "Game drawn by repetition"]

1. d4 {[%clk 0:03:01.9]} 1... Nf6 {[%clk 0:02:59.6]} 2. Nf3 {[%clk 0:03:01]}
2... e6 {[%clk 0:02:58.7]} 3. c4 {[%clk 0:03:02]} 3... b6 {[%clk 0:02:58.4]} 4.
g3 {[%clk 0:03:02.4]} 4... Bb7 {[%clk 0:02:54.7]} 5. Bg2 {[%clk 0:03:03.1]} 5...
Be7 {[%clk 0:02:55.4]} 6. O-O {[%clk 0:03:04.1]} 6... O-O {[%clk 0:02:56]} 7.
Re1 {[%clk 0:03:04.5]} 7... Na6 {[%clk 0:02:51.5]} 8. a3 {[%clk 0:02:58.6]} 8...
c5 {[%clk 0:02:46]} 9. d5 {[%clk 0:02:59.2]} 9... exd5 {[%clk 0:02:44.3]} 10.
Nh4 {[%clk 0:02:55.6]} 10... Nc7 {[%clk 0:02:40.1]} 11. Nc3 {[%clk 0:02:55.5]}
11... Ne4 {[%clk 0:02:27.3]} 12. Nf5 {[%clk 0:02:50.9]} 12... Nxc3 {[%clk
0:02:14.5]} 13. bxc3 {[%clk 0:02:33.5]} 13... Bf6 {[%clk 0:02:13.1]} 14. Qc2
{[%clk 0:01:57.9]} 14... Bc6 {[%clk 0:02:07.1]} 15. Rd1 {[%clk 0:01:54.7]} 15...
d4 {[%clk 0:01:51.1]} 16. cxd4 {[%clk 0:01:49.9]} 16... Bxg2 {[%clk 0:01:50.2]}
17. Kxg2 {[%clk 0:01:51.8]} 17... d5 {[%clk 0:01:41.6]} 18. Bb2 {[%clk
0:01:48.6]} 18... Qd7 {[%clk 0:01:19.6]} 19. Rac1 {[%clk 0:01:44.2]} 19... Rfe8
{[%clk 0:01:09.9]} 20. Ba1 {[%clk 0:01:17.5]} 20... Re4 {[%clk 0:00:51.8]} 21.
Ne3 {[%clk 0:01:13.9]} 21... Rae8 {[%clk 0:00:20.4]} 22. dxc5 {[%clk 0:01:00.7]}
22... Bxa1 {[%clk 0:00:20.8]} 23. cxd5 {[%clk 0:00:58.5]} 23... Bd4 {[%clk
0:00:18.4]} 24. d6 {[%clk 0:00:57.9]} 24... Nb5 {[%clk 0:00:16.9]} 25. c6 {[%clk
0:00:45.9]} 25... Qxd6 {[%clk 0:00:17.4]} 26. c7 {[%clk 0:00:47.5]} 26... Nxc7
{[%clk 0:00:12]} 27. Qxc7 {[%clk 0:00:47.4]} 27... Qxc7 {[%clk 0:00:12.6]} 28.
Rxc7 {[%clk 0:00:49.3]} 28... Bxe3 {[%clk 0:00:13.5]} 29. fxe3 {[%clk
0:00:50.8]} 29... Rxe3 {[%clk 0:00:14.5]} 30. Rdd7 {[%clk 0:00:51.9]} 30...
Rxe2+ {[%clk 0:00:15.2]} 31. Kf3 {[%clk 0:00:49.8]} 31... R2e3+ {[%clk
0:00:14.6]} 32. Kf2 {[%clk 0:00:50]} 32... Re2+ {[%clk 0:00:15.4]} 33. Kf3
{[%clk 0:00:51.3]} 33... R2e3+ {[%clk 0:00:16.5]} 34. Kf2 {[%clk 0:00:52.6]}
34... Re2+ {[%clk 0:00:17.5]} 35. Kf3 {[%clk 0:00:54.1]} 35... R2e3+ {[%clk
0:00:18.1]} 1/2-1/2

[Event "*** Titled Tuesday 3|2 Blitz"]
[Site "Chess.com"]
[Date "2015.07.07"]
[Round "5"]
[White "kesarev"]
[Black "Keaton87"]
[Result "0-1"]
[WhiteElo "2199"]
[BlackElo "2434"]
[TimeControl "180+2"]
[EndTime "12:00:01 PDT"]
[Termination "Keaton87 won by resignation"]

1. Nf3 {[%clk 0:03:01.9]} 1... Nf6 {[%clk 0:03:00.5]} 2. c4 {[%clk 0:03:01.4]}
2... g6 {[%clk 0:03:01.8]} 3. Nc3 {[%clk 0:03:01.3]} 3... Bg7 {[%clk 0:03:03.3]}
4. e4 {[%clk 0:03:02.6]} 4... O-O {[%clk 0:03:04.5]} 5. d4 {[%clk 0:03:04.2]}
5... d6 {[%clk 0:03:06]} 6. h3 {[%clk 0:03:05.8]} 6... e5 {[%clk 0:03:05.5]} 7.
d5 {[%clk 0:03:06.5]} 7... Na6 {[%clk 0:03:04.2]} 8. Be3 {[%clk 0:03:06.6]} 8...
Qe8 {[%clk 0:03:05.4]} 9. Nd2 {[%clk 0:03:01.5]} 9... Nh5 {[%clk 0:03:06.4]} 10.
g3 {[%clk 0:02:54.9]} 10... f5 {[%clk 0:03:07.2]} 11. exf5 {[%clk 0:02:45.2]}
11... gxf5 {[%clk 0:03:07.7]} 12. Be2 {[%clk 0:02:44.4]} 12... Nf6 {[%clk
0:03:06.6]} 13. Bg5 {[%clk 0:02:45.2]} 13... Nc5 {[%clk 0:03:02.7]} 14. Qc2
{[%clk 0:02:36]} 14... Qg6 {[%clk 0:02:55.9]} 15. Bh4 {[%clk 0:02:29.6]} 15...
f4 {[%clk 0:02:46.2]} 16. Qxg6 {[%clk 0:02:18.5]} 16... hxg6 {[%clk 0:02:48.1]}
17. g4 {[%clk 0:02:17]} 17... Bd7 {[%clk 0:02:29.1]} 18. O-O-O {[%clk 0:02:05]}
18... Rae8 {[%clk 0:02:29]} 19. f3 {[%clk 0:00:57.8]} 19... e4 {[%clk
0:02:24.2]} 20. Bxf6 {[%clk 0:00:47.1]} 20... exf3 {[%clk 0:02:25.1]} 21. Bxg7
{[%clk 0:00:40.8]} 21... fxe2 {[%clk 0:02:25.5]} 22. Bxf8 {[%clk 0:00:41.7]}
22... exd1=Q+ {[%clk 0:02:20.4]} 23. Rxd1 {[%clk 0:00:42.1]} 23... Kxf8 {[%clk
0:02:16.8]} 24. Kc2 {[%clk 0:00:40.6]} 24... Kg7 {[%clk 0:02:16.2]} 25. b4
{[%clk 0:00:33.1]} 25... Na4 {[%clk 0:02:10.1]} 26. Nce4 {[%clk 0:00:33.8]}
26... Nb6 {[%clk 0:02:06.4]} 27. Kc3 {[%clk 0:00:29.7]} 27... Rh8 {[%clk
0:01:59.7]} 28. Rh1 {[%clk 0:00:26.4]} 28... Bxg4 {[%clk 0:01:59.8]} 29. Ng5
{[%clk 0:00:20.5]} 29... Rh5 {[%clk 0:01:49.3]} 30. Nde4 {[%clk 0:00:20.9]}
30... Bf5 {[%clk 0:01:44.9]} 31. Kd4 {[%clk 0:00:21.6]} 31... Nd7 {[%clk
0:01:45.2]} 32. c5 {[%clk 0:00:15.9]} 32... Bxe4 {[%clk 0:01:29.2]} 33. Nxe4
{[%clk 0:00:15.7]} 33... Nf6 {[%clk 0:01:30.5]} 34. cxd6 {[%clk 0:00:12.7]}
34... cxd6 {[%clk 0:01:22.9]} 35. Nxf6 {[%clk 0:00:09.5]} 35... Kxf6 {[%clk
0:01:24.8]} 36. Ke4 {[%clk 0:00:10.8]} 36... Rf5 {[%clk 0:01:18.6]} 37. Rf1
{[%clk 0:00:08.6]} 37... g5 {[%clk 0:01:01.5]} 38. Kf3 {[%clk 0:00:07.9]} 38...
Rxd5 {[%clk 0:01:01.5]} 39. Rc1 {[%clk 0:00:06]} 39... Rd3+ {[%clk 0:01:00.4]}
40. Kg2 {[%clk 0:00:04.1]} 40... Rg3+ {[%clk 0:01:01.1]} 41. Kh2 {[%clk
0:00:04.8]} 41... Ra3 {[%clk 0:01:02.7]} 42. Rc2 {[%clk 0:00:05.8]} 0-1

[Event "*** Titled Tuesday 3|2 Blitz"]
[Site "Chess.com"]
[Date "2015.07.07"]
[Round "5"]
[White "stefanodinn"]
[Black "WanderingPuppet"]
[Result "1/2-1/2"]
[WhiteElo "2122"]
[BlackElo "2186"]
[TimeControl "180+2"]
[EndTime "12:00:29 PDT"]
[Termination "Game drawn by repetition"]

1. e4 {[%clk 0:03:01.9]} 1... c5 {[%clk 0:02:59]} 2. Nf3 {[%clk 0:03:02.6]} 2...
d6 {[%clk 0:03:00.2]} 3. d4 {[%clk 0:03:02.9]} 3... cxd4 {[%clk 0:03:02.1]} 4.
Nxd4 {[%clk 0:03:03.8]} 4... Nf6 {[%clk 0:03:03.8]} 5. f3 {[%clk 0:03:04.5]}
5... a6 {[%clk 0:03:05.4]} 6. c4 {[%clk 0:03:04.5]} 6... e5 {[%clk 0:03:06]} 7.
Nc2 {[%clk 0:03:01.8]} 7... Nbd7 {[%clk 0:03:07.5]} 8. Nc3 {[%clk 0:02:56.5]}
8... Be7 {[%clk 0:03:08.7]} 9. Be2 {[%clk 0:02:56.8]} 9... O-O {[%clk
0:03:10.3]} 10. O-O {[%clk 0:02:57.6]} 10... b5 {[%clk 0:03:07.5]} 11. cxb5
{[%clk 0:02:55.5]} 11... axb5 {[%clk 0:03:06.5]} 12. Bxb5 {[%clk 0:02:52.3]}
12... Ba6 {[%clk 0:03:04.6]} 13. Bxa6 {[%clk 0:02:47.1]} 13... Rxa6 {[%clk
0:03:06.5]} 14. Be3 {[%clk 0:02:47.2]} 14... Qb8 {[%clk 0:03:05.1]} 15. b4
{[%clk 0:02:42.9]} 15... Rc8 {[%clk 0:03:06.4]} 16. Nd5 {[%clk 0:02:16.5]} 16...
Nxd5 {[%clk 0:03:06.6]} 17. exd5 {[%clk 0:02:16.9]} 17... Nb6 {[%clk 0:02:51.1]}
18. Qd3 {[%clk 0:01:57.4]} 18... Qb7 {[%clk 0:02:39.5]} 19. b5 {[%clk
0:01:44.1]} 19... Ra4 {[%clk 0:02:31.9]} 20. Rfd1 {[%clk 0:01:38.2]} 20... Rac4
{[%clk 0:02:15.3]} 21. Ne1 {[%clk 0:01:15.8]} 21... Rc3 {[%clk 0:02:06.5]} 22.
Qd2 {[%clk 0:01:13.3]} 22... Na4 {[%clk 0:01:44.7]} 23. Rab1 {[%clk 0:01:10.3]}
23... R3c4 {[%clk 0:01:35.1]} 24. Rb3 {[%clk 0:01:00.2]} 24... Bd8 {[%clk
0:01:17.1]} 25. b6 {[%clk 0:00:36.2]} 25... Nc3 {[%clk 0:00:54.3]} 26. Rc1
{[%clk 0:00:28.6]} 26... Nxd5 {[%clk 0:00:52.2]} 27. Rxc4 {[%clk 0:00:28.6]}
27... Rxc4 {[%clk 0:00:54.1]} 28. Bf2 {[%clk 0:00:23.3]} 28... h6 {[%clk
0:00:47.1]} 29. Qd3 {[%clk 0:00:13.5]} 29... Rc1 {[%clk 0:00:37.6]} 30. Qd2
{[%clk 0:00:12.7]} 30... Ra1 {[%clk 0:00:25.6]} 31. Qb2 {[%clk 0:00:09.9]} 31...
Rd1 {[%clk 0:00:19.3]} 32. Qc2 {[%clk 0:00:10]} 32... Ra1 {[%clk 0:00:16.3]} 33.
Qb2 {[%clk 0:00:08.2]} 33... Rd1 {[%clk 0:00:16.9]} 34. Qc2 {[%clk 0:00:09.3]}
34... Ra1 {[%clk 0:00:17.9]} 35. Qb2 {[%clk 0:00:05.3]} 35... Rd1 {[%clk
0:00:14.4]} 36. Qc2 {[%clk 0:00:06.3]} 36... Ra1 {[%clk 0:00:15.2]} 37. Qb2
{[%clk 0:00:07.5]} 1/2-1/2

[Event "*** Titled Tuesday 3|2 Blitz"]
[Site "Chess.com"]
[Date "2015.07.07"]
[Round "5"]
[White "Lupul_Cenusiu"]
[Black "AlexanderL"]
[Result "1/2-1/2"]
[WhiteElo "2393"]
[BlackElo "2526"]
[TimeControl "180+2"]
[EndTime "12:00:55 PDT"]
[Termination "Game drawn by agreement"]

1. d4 {[%clk 0:03:01.9]} 1... Nf6 {[%clk 0:03:00.2]} 2. c4 {[%clk 0:03:02.2]}
2... e6 {[%clk 0:03:01.1]} 3. Nf3 {[%clk 0:03:02.8]} 3... d5 {[%clk 0:02:59.1]}
4. e3 {[%clk 0:03:02.4]} 4... b6 {[%clk 0:02:58.8]} 5. Be2 {[%clk 0:03:02.2]}
5... Bb7 {[%clk 0:02:58.5]} 6. O-O {[%clk 0:03:03.2]} 6... dxc4 {[%clk
0:02:59.1]} 7. Bxc4 {[%clk 0:03:03]} 7... c5 {[%clk 0:03:00.1]} 8. dxc5 {[%clk
0:03:03.5]} 8... Qxd1 {[%clk 0:03:00.3]} 9. Rxd1 {[%clk 0:03:04.4]} 9... Bxc5
{[%clk 0:03:01.5]} 10. a3 {[%clk 0:02:57.9]} 10... Be7 {[%clk 0:02:58.9]} 11. b4
{[%clk 0:02:47.7]} 11... Nbd7 {[%clk 0:02:51.7]} 12. Bb2 {[%clk 0:02:45.2]}
12... O-O {[%clk 0:02:40.6]} 13. Be2 {[%clk 0:02:42.1]} 13... a5 {[%clk
0:02:39.5]} 14. bxa5 {[%clk 0:02:39.5]} 14... Rxa5 {[%clk 0:02:32.1]} 15. Nbd2
{[%clk 0:02:39.8]} 15... Ra7 {[%clk 0:02:22.3]} 16. Nc4 {[%clk 0:02:34.7]} 16...
Bd5 {[%clk 0:02:21.1]} 17. Nd4 {[%clk 0:02:29.9]} 17... Ra4 {[%clk 0:02:07.8]}
18. Rac1 {[%clk 0:02:21.7]} 18... Rfa8 {[%clk 0:02:08]} 19. Nb5 {[%clk
0:02:21.2]} 19... Rc8 {[%clk 0:01:52.7]} 20. Ne5 {[%clk 0:02:10.1]} 20... Rxc1
{[%clk 0:01:52.2]} 21. Rxc1 {[%clk 0:02:10.7]} 21... Nc5 {[%clk 0:01:45.6]} 22.
Nc3 {[%clk 0:02:06.4]} 22... Ra8 {[%clk 0:01:35.3]} 23. Nxd5 {[%clk 0:02:03.8]}
23... Nxd5 {[%clk 0:01:36.5]} 24. Bf3 {[%clk 0:01:55.5]} 24... Bf6 {[%clk
0:01:37.6]} 25. Rd1 {[%clk 0:01:28.7]} 25... Na4 {[%clk 0:01:11.7]} 26. Bd4
{[%clk 0:01:07.5]} 26... g6 {[%clk 0:01:12.8]} 27. Bxd5 {[%clk 0:01:05]} 27...
exd5 {[%clk 0:01:12.6]} 28. Rb1 {[%clk 0:00:56.5]} 28... Rc8 {[%clk 0:00:58.7]}
29. Kf1 {[%clk 0:00:51.5]} 29... Rc2 {[%clk 0:00:56.3]} 30. g3 {[%clk
0:00:38.7]} 30... Be7 {[%clk 0:00:49.9]} 31. Rb3 {[%clk 0:00:24.5]} 31... Bc5
{[%clk 0:00:30.3]} 32. Nd7 {[%clk 0:00:21.1]} 32... Bxd4 {[%clk 0:00:30.8]} 33.
exd4 {[%clk 0:00:22.4]} 33... Rd2 {[%clk 0:00:20.6]} 34. Nxb6 {[%clk 0:00:22.1]}
34... Nxb6 {[%clk 0:00:20.8]} 35. Rxb6 {[%clk 0:00:23.2]} 35... Rxd4 {[%clk
0:00:22.4]} 36. Rb4 {[%clk 0:00:23.3]} 36... Rd2 {[%clk 0:00:21]} 37. a4 {[%clk
0:00:23.3]} 37... Kf8 {[%clk 0:00:17.6]} 38. a5 {[%clk 0:00:24.1]} 38... Ra2
{[%clk 0:00:18.3]} 39. Rb5 {[%clk 0:00:25.4]} 39... d4 {[%clk 0:00:18.7]} 40.
Rd5 {[%clk 0:00:26.6]} 40... Ra4 {[%clk 0:00:19.2]} 41. a6 {[%clk 0:00:27.6]}
41... Ke7 {[%clk 0:00:16.9]} 42. a7 {[%clk 0:00:28]} 42... Rxa7 {[%clk
0:00:16.8]} 43. Rxd4 {[%clk 0:00:28]} 43... Ra2 {[%clk 0:00:16.6]} 1/2-1/2